[Event "Titled Tuesday Blitz August 15 Early 2023"]
[White "Nathan, Nitish"]
[Black "Kuzhilniy, Oleksandr"]
[WhiteFideId "30927870"]
[BlackFideId "34110500"]
[WhiteElo "2444"]
[BlackElo "2614"]
[Result "0-1"]
[Round "7"]
[TimeControl "180+1"]
[Date "2023.08.15"]
[WhiteClock "0:00:45"]
[BlackClock "0:00:15"]
[Board "89"]

1. d4 {[%clk 0:03:00]}  g6 {[%clk 0:02:57]} 2. Bf4 {[%clk 0:03:00]}  Bg7 {[%clk 0:02:57]} 3. e3 {[%clk 0:03:01]}  d6 {[%clk 0:02:57]} 4. Nf3 {[%clk 0:03:00]}  Nd7 {[%clk 0:02:57]} 5. h3 {[%clk 0:03:01]}  e5 {[%clk 0:02:55]} 6. Bh2 {[%clk 0:03:00]}  Qe7 {[%clk 0:02:54]} 7. Be2 {[%clk 0:02:59]}  Ngf6 {[%clk 0:02:53]} 8. O-O {[%clk 0:02:59]}  O-O {[%clk 0:02:53]} 9. c4 {[%clk 0:02:59]}  b6 {[%clk 0:02:51]} 10. Nc3 {[%clk 0:02:58]}  Bb7 {[%clk 0:02:51]} 11. Nb5 {[%clk 0:02:57]}  Rfc8 {[%clk 0:02:47]} 12. Rc1 {[%clk 0:02:52]}  a6 {[%clk 0:02:45]} 13. Nc3 {[%clk 0:02:52]}  Ne4 {[%clk 0:02:45]} 14. Nxe4 {[%clk 0:02:51]}  Bxe4 {[%clk 0:02:46]} 15. d5 {[%clk 0:02:50]}  Bxf3 {[%clk 0:02:38]} 16. gxf3 {[%clk 0:02:45]}  f5 {[%clk 0:02:27]} 17. b3 {[%clk 0:02:43]}  a5 {[%clk 0:02:27]} 18. f4 {[%clk 0:02:41]}  e4 {[%clk 0:02:26]} 19. Kh1 {[%clk 0:02:39]}  Qh4 {[%clk 0:02:11]} 20. Kg2 {[%clk 0:02:38]}  Nc5 {[%clk 0:02:10]} 21. Bg3 {[%clk 0:02:38]}  Qe7 {[%clk 0:02:10]} 22. Rb1 {[%clk 0:02:36]}  Bf6 {[%clk 0:02:06]} 23. Kh1 {[%clk 0:02:35]}  Kh8 {[%clk 0:02:05]} 24. Rg1 {[%clk 0:02:33]}  Rg8 {[%clk 0:02:04]} 25. Qe1 {[%clk 0:02:31]}  Bh4 {[%clk 0:01:54]} 26. Qc3+ {[%clk 0:02:28]}  Bf6 {[%clk 0:01:53]} 27. Qe1 {[%clk 0:02:28]}  Rg7 {[%clk 0:01:53]} 28. Bh2 {[%clk 0:02:25]}  Rag8 {[%clk 0:01:49]} 29. Rg2 {[%clk 0:02:22]}  g5 {[%clk 0:01:40]} 30. fxg5 {[%clk 0:02:19]}  Rxg5 {[%clk 0:01:41]} 31. Rxg5 {[%clk 0:02:18]}  Rxg5 {[%clk 0:01:42]} 32. Bg3 {[%clk 0:02:18]}  Qg7 {[%clk 0:01:36]} 33. Kh2 {[%clk 0:01:52]}  Be5 {[%clk 0:01:35]} 34. a3 {[%clk 0:01:44]}  Nd7 {[%clk 0:00:41]} 35. b4 {[%clk 0:01:38]}  axb4 {[%clk 0:00:42]} 36. axb4 {[%clk 0:01:39]}  Bxg3+ {[%clk 0:00:39]} 37. fxg3 {[%clk 0:01:40]}  Qe5 {[%clk 0:00:36]} 38. Qf2 {[%clk 0:01:38]}  Nf6 {[%clk 0:00:34]} 39. Qf4 {[%clk 0:01:38]}  Qxf4 {[%clk 0:00:23]} 40. gxf4 {[%clk 0:01:39]}  Rg8 {[%clk 0:00:20]} 41. Ra1 {[%clk 0:01:38]}  b5 {[%clk 0:00:19]} 42. Ra7 {[%clk 0:01:36]}  Rc8 {[%clk 0:00:18]} 43. Rb7 {[%clk 0:01:35]}  bxc4 {[%clk 0:00:19]} 44. Bxc4 {[%clk 0:01:36]}  Kg7 {[%clk 0:00:19]} 45. b5 {[%clk 0:01:35]}  Nd7 {[%clk 0:00:19]} 46. Bb3 {[%clk 0:01:30]}  Nc5 {[%clk 0:00:18]} 47. Ra7 {[%clk 0:01:25]}  Nxb3 {[%clk 0:00:19]} 48. b6 {[%clk 0:01:26]}  Kg6 {[%clk 0:00:13]} 49. Rxc7 {[%clk 0:01:23]}  Rb8 {[%clk 0:00:13]} 50. Rc6 {[%clk 0:01:23]}  Kf7 {[%clk 0:00:12]} 51. Rxd6 {[%clk 0:01:21]}  Nc5 {[%clk 0:00:12]} 52. Rc6 {[%clk 0:01:20]}  Nd7 {[%clk 0:00:12]} 53. Rc7 {[%clk 0:01:20]}  Ke7 {[%clk 0:00:12]} 54. b7 {[%clk 0:01:14]}  Kd6 {[%clk 0:00:12]} 55. Rc6+ {[%clk 0:01:13]}  Kxd5 {[%clk 0:00:13]} 56. Rh6 {[%clk 0:01:10]}  Rxb7 {[%clk 0:00:13]} 57. Rxh7 {[%clk 0:01:10]}  Ke6 {[%clk 0:00:14]} 58. Kg3 {[%clk 0:01:09]}  Rb3 {[%clk 0:00:13]} 59. Kf2 {[%clk 0:01:08]}  Nf6 {[%clk 0:00:14]} 60. Ra7 {[%clk 0:01:06]}  Nd5 {[%clk 0:00:14]} 61. Ra6+ {[%clk 0:01:05]}  Rb6 {[%clk 0:00:14]} 62. Ra7 {[%clk 0:01:04]}  Rb2+ {[%clk 0:00:14]} 63. Kg3 {[%clk 0:01:04]}  Nxe3 {[%clk 0:00:15]} 64. h4 {[%clk 0:01:04]}  Rg2+ {[%clk 0:00:14]} 65. Kh3 {[%clk 0:01:04]}  Rg4 {[%clk 0:00:15]} 66. Ra6+ {[%clk 0:01:02]}  Kf7 {[%clk 0:00:14]} 67. h5 {[%clk 0:00:58]}  Rxf4 {[%clk 0:00:15]} 68. Kg3 {[%clk 0:00:58]}  Rf1 {[%clk 0:00:15]} 69. h6 {[%clk 0:00:57]}  f4+ {[%clk 0:00:15]} 70. Kh4 {[%clk 0:00:57]}  Rh1+ {[%clk 0:00:15]} 71. Kg5 {[%clk 0:00:57]}  f3 {[%clk 0:00:16]} 72. Ra7+ {[%clk 0:00:57]}  Ke6 {[%clk 0:00:16]} 73. Ra6+ {[%clk 0:00:57]}  Ke5 {[%clk 0:00:16]} 74. Ra5+ {[%clk 0:00:53]}  Nd5 {[%clk 0:00:16]} 75. Ra2 {[%clk 0:00:52]}  e3 {[%clk 0:00:16]} 76. Kg4 {[%clk 0:00:46]}  f2 {[%clk 0:00:16]} 77. h7 {[%clk 0:00:47]}  Rxh7 {[%clk 0:00:16]} 78. Ra1 {[%clk 0:00:46]}  e2 {[%clk 0:00:15]} 79. Kf3 {[%clk 0:00:45]}  f1=Q+ {[%clk 0:00:15]} 0-1


[Site "https://www.chess.com"]

[Event "Titled Tuesday Blitz August 15 Early 2023"]
[White "Gamayev, Oleg"]
[Black "Bueno, Alfeu Junior Varela"]
[WhiteFideId "2802813"]
[BlackFideId "2108879"]
[WhiteElo "2612"]
[BlackElo "2440"]
[Result "1-0"]
[Round "7"]
[TimeControl "180+1"]
[Date "2023.08.15"]
[WhiteClock "0:01:43"]
[BlackClock "0:00:45"]
[Board "90"]

1. d3 {[%clk 0:02:52]}  e5 {[%clk 0:02:59]} 2. e4 {[%clk 0:02:51]}  Nc6 {[%clk 0:02:46]} 3. Nf3 {[%clk 0:02:52]}  f5 {[%clk 0:02:44]} 4. Be2 {[%clk 0:02:53]}  Nf6 {[%clk 0:02:43]} 5. exf5 {[%clk 0:02:53]}  d5 {[%clk 0:02:43]} 6. O-O {[%clk 0:02:54]}  Bxf5 {[%clk 0:02:43]} 7. c3 {[%clk 0:02:55]}  Bd6 {[%clk 0:02:39]} 8. Re1 {[%clk 0:02:53]}  O-O {[%clk 0:02:39]} 9. Nbd2 {[%clk 0:02:52]}  Kh8 {[%clk 0:02:10]} 10. Nf1 {[%clk 0:02:50]}  e4 {[%clk 0:01:56]} 11. dxe4 {[%clk 0:02:50]}  Nxe4 {[%clk 0:01:54]} 12. Be3 {[%clk 0:02:46]}  Qe8 {[%clk 0:01:45]} 13. Qxd5 {[%clk 0:02:35]}  Rd8 {[%clk 0:01:44]} 14. Qb5 {[%clk 0:02:35]}  Bc8 {[%clk 0:01:28]} 15. Rad1 {[%clk 0:02:33]}  Qg6 {[%clk 0:01:26]} 16. N3d2 {[%clk 0:02:16]}  a6 {[%clk 0:01:07]} 17. Qc4 {[%clk 0:02:07]}  Nxd2 {[%clk 0:01:03]} 18. Rxd2 {[%clk 0:02:02]}  Ne5 {[%clk 0:01:02]} 19. Qh4 {[%clk 0:01:52]}  Nf3+ {[%clk 0:00:51]} 20. Bxf3 {[%clk 0:01:52]}  Rxf3 {[%clk 0:00:45]} 21. Qxd8+ {[%clk 0:01:43]} 1-0


[Site "https://www.chess.com"]

[Event "Titled Tuesday Blitz August 15 Early 2023"]
[White "WindWhistler11"]
[Black "Golubev, Mikhail"]
[BlackFideId "14100983"]
[WhiteElo "2441"]
[BlackElo "2599"]
[Result "0-1"]
[Round "7"]
[TimeControl "180+1"]
[Date "2023.08.15"]
[WhiteClock "0:00:05"]
[BlackClock "0:00:07"]
[Board "91"]

1. Nf3 {[%clk 0:03:00]}  d6 {[%clk 0:02:58]} 2. c4 {[%clk 0:03:00]}  g6 {[%clk 0:02:57]} 3. d4 {[%clk 0:02:58]}  Bg7 {[%clk 0:02:58]} 4. e3 {[%clk 0:02:58]}  Nf6 {[%clk 0:02:58]} 5. Nc3 {[%clk 0:02:58]}  O-O {[%clk 0:02:59]} 6. g3 {[%clk 0:02:59]}  Nbd7 {[%clk 0:02:58]} 7. Bg2 {[%clk 0:02:59]}  e5 {[%clk 0:02:57]} 8. O-O {[%clk 0:03:00]}  Re8 {[%clk 0:02:57]} 9. Re1 {[%clk 0:03:00]}  c6 {[%clk 0:02:54]} 10. b3 {[%clk 0:03:00]}  e4 {[%clk 0:02:51]} 11. Nd2 {[%clk 0:03:00]}  d5 {[%clk 0:02:51]} 12. f3 {[%clk 0:02:53]}  exf3 {[%clk 0:02:48]} 13. Qxf3 {[%clk 0:02:52]}  Nb6 {[%clk 0:02:25]} 14. Bb2 {[%clk 0:02:44]}  Bg4 {[%clk 0:02:07]} 15. Qf2 {[%clk 0:02:42]}  Be6 {[%clk 0:02:06]} 16. c5 {[%clk 0:02:38]}  Nbd7 {[%clk 0:02:04]} 17. h3 {[%clk 0:02:24]}  b6 {[%clk 0:01:58]} 18. b4 {[%clk 0:01:53]}  a5 {[%clk 0:01:56]} 19. b5 {[%clk 0:01:45]}  cxb5 {[%clk 0:01:55]} 20. c6 {[%clk 0:01:45]}  Nb8 {[%clk 0:01:54]} 21. Nxb5 {[%clk 0:01:44]}  Nxc6 {[%clk 0:01:54]} 22. Rac1 {[%clk 0:01:44]}  Rc8 {[%clk 0:01:48]} 23. Ba3 {[%clk 0:01:42]}  Nb4 {[%clk 0:01:42]} 24. Rxc8 {[%clk 0:01:39]}  Bxc8 {[%clk 0:01:43]} 25. Bxb4 {[%clk 0:01:38]}  axb4 {[%clk 0:01:42]} 26. Rb1 {[%clk 0:01:21]}  Qe7 {[%clk 0:01:33]} 27. Nf1 {[%clk 0:00:57]}  Ba6 {[%clk 0:01:26]} 28. Qe2 {[%clk 0:00:38]}  Bf8 {[%clk 0:00:58]} 29. Kh2 {[%clk 0:00:28]}  Qd7 {[%clk 0:00:54]} 30. a4 {[%clk 0:00:23]}  bxa3 {[%clk 0:00:53]} 31. Qf2 {[%clk 0:00:20]}  Ng4+ {[%clk 0:00:42]} 32. hxg4 {[%clk 0:00:20]}  Bxb5 {[%clk 0:00:42]} 33. Nd2 {[%clk 0:00:10]}  Ra8 {[%clk 0:00:41]} 34. Ra1 {[%clk 0:00:07]}  Bc6 {[%clk 0:00:30]} 35. Nf3 {[%clk 0:00:07]}  Bd6 {[%clk 0:00:26]} 36. g5 {[%clk 0:00:03]}  b5 {[%clk 0:00:26]} 37. Bh3 {[%clk 0:00:03]}  Qc7 {[%clk 0:00:25]} 38. Kg2 {[%clk 0:00:04]}  b4 {[%clk 0:00:24]} 39. Nh2 {[%clk 0:00:05]}  b3 {[%clk 0:00:12]} 40. Ng4 {[%clk 0:00:05]}  b2 {[%clk 0:00:11]} 41. Qf6 {[%clk 0:00:04]}  bxa1=Q {[%clk 0:00:09]} 42. Nh6+ {[%clk 0:00:05]}  Kf8 {[%clk 0:00:09]} 43. Qh8+ {[%clk 0:00:05]}  Ke7 {[%clk 0:00:09]} 44. Qf6+ {[%clk 0:00:05]}  Ke8 {[%clk 0:00:08]} 45. Qh8+ {[%clk 0:00:04]}  Bf8 {[%clk 0:00:08]} 46. Qf6 {[%clk 0:00:03]}  Qb2+ {[%clk 0:00:08]} 47. Kh1 {[%clk 0:00:04]}  a2 {[%clk 0:00:08]} 48. Bg2 {[%clk 0:00:03]}  a1=Q+ {[%clk 0:00:07]} 49. Kh2 {[%clk 0:00:04]}  Qxg2+ {[%clk 0:00:07]} 50. Kxg2 {[%clk 0:00:05]}  Ra2+ {[%clk 0:00:07]} 51. Kh3 {[%clk 0:00:04]}  Qh1+ {[%clk 0:00:07]} 52. Kg4 {[%clk 0:00:05]}  Qh5# {[%clk 0:00:07]} 0-1


[Site "https://www.chess.com"]

[Event "Titled Tuesday Blitz August 15 Early 2023"]
[White "Sadykov, Ramil"]
[Black "Herman, Daniel"]
[WhiteFideId "24113590"]
[BlackFideId "30935008"]
[WhiteElo "2588"]
[BlackElo "2437"]
[Result "1-0"]
[Round "7"]
[TimeControl "180+1"]
[Date "2023.08.15"]
[WhiteClock "0:00:02"]
[BlackClock "0:00:03"]
[Board "93"]

1. d4 {[%clk 0:02:42]}  Nf6 {[%clk 0:02:59]} 2. Nc3 {[%clk 0:02:39]}  d5 {[%clk 0:02:58]} 3. Bf4 {[%clk 0:02:38]}  e6 {[%clk 0:02:58]} 4. e3 {[%clk 0:02:38]}  Bb4 {[%clk 0:02:57]} 5. Ne2 {[%clk 0:02:37]}  O-O {[%clk 0:02:49]} 6. a3 {[%clk 0:02:34]}  Bd6 {[%clk 0:02:49]} 7. g4 {[%clk 0:02:20]}  Nxg4 {[%clk 0:02:41]} 8. Rg1 {[%clk 0:02:18]}  e5 {[%clk 0:02:04]} 9. dxe5 {[%clk 0:02:10]}  Nxe5 {[%clk 0:02:03]} 10. Qxd5 {[%clk 0:01:55]}  Nbc6 {[%clk 0:01:14]} 11. O-O-O {[%clk 0:01:48]}  Be6 {[%clk 0:01:12]} 12. Qg2 {[%clk 0:01:43]}  Ng6 {[%clk 0:01:11]} 13. Bxd6 {[%clk 0:01:26]}  cxd6 {[%clk 0:01:12]} 14. Nf4 {[%clk 0:01:14]}  Rc8 {[%clk 0:01:08]} 15. Kb1 {[%clk 0:00:59]}  Nce5 {[%clk 0:01:07]} 16. Nfd5 {[%clk 0:00:58]}  Bxd5 {[%clk 0:00:59]} 17. Nxd5 {[%clk 0:00:58]}  f5 {[%clk 0:00:22]} 18. h3 {[%clk 0:00:44]}  Qh4 {[%clk 0:00:19]} 19. f4 {[%clk 0:00:39]}  Nc4 {[%clk 0:00:19]} 20. Rd4 {[%clk 0:00:27]}  Nb6 {[%clk 0:00:15]} 21. Nxb6 {[%clk 0:00:21]}  axb6 {[%clk 0:00:15]} 22. Bc4+ {[%clk 0:00:20]}  Kh8 {[%clk 0:00:16]} 23. Bd5 {[%clk 0:00:17]}  Qf6 {[%clk 0:00:13]} 24. Bxb7 {[%clk 0:00:17]}  Rc7 {[%clk 0:00:13]} 25. Bf3 {[%clk 0:00:16]}  Re8 {[%clk 0:00:13]} 26. Re1 {[%clk 0:00:14]}  Nh4 {[%clk 0:00:12]} 27. Qf2 {[%clk 0:00:12]}  Rce7 {[%clk 0:00:08]} 28. Rd3 {[%clk 0:00:09]}  Ng6 {[%clk 0:00:07]} 29. Red1 {[%clk 0:00:09]}  Re6 {[%clk 0:00:06]} 30. c3 {[%clk 0:00:07]}  Nh4 {[%clk 0:00:06]} 31. Bd5 {[%clk 0:00:06]}  R6e7 {[%clk 0:00:06]} 32. Ka1 {[%clk 0:00:06]}  Ng6 {[%clk 0:00:05]} 33. Bc6 {[%clk 0:00:06]}  Rd8 {[%clk 0:00:05]} 34. Qd2 {[%clk 0:00:06]}  Nh4 {[%clk 0:00:04]} 35. Rxd6 {[%clk 0:00:05]}  Rxd6 {[%clk 0:00:04]} 36. Qxd6 {[%clk 0:00:06]}  Qxd6 {[%clk 0:00:05]} 37. Rxd6 {[%clk 0:00:07]}  g6 {[%clk 0:00:05]} 38. a4 {[%clk 0:00:04]}  Rxe3 {[%clk 0:00:05]} 39. Bb5 {[%clk 0:00:03]}  Rxh3 {[%clk 0:00:04]} 40. Rxb6 {[%clk 0:00:04]}  Ng2 {[%clk 0:00:04]} 41. a5 {[%clk 0:00:04]}  Ne3 {[%clk 0:00:03]} 42. a6 {[%clk 0:00:03]}  Nd5 {[%clk 0:00:03]} 43. Rb7 {[%clk 0:00:03]}  Rh1+ {[%clk 0:00:01]} 44. Ka2 {[%clk 0:00:03]}  Ne3 {[%clk 0:00:02]} 45. a7 {[%clk 0:00:01]}  Nc2 {[%clk 0:00:03]} 46. a8=Q# {[%clk 0:00:02]} 1-0


[Site "https://www.chess.com"]

[Event "Titled Tuesday Blitz August 15 Early 2023"]
[White "Kielinkei"]
[Black "Aggelis, Nikolaos"]
[BlackFideId "4213220"]
[WhiteElo "2429"]
[BlackElo "2568"]
[Result "0-1"]
[Round "7"]
[TimeControl "180+1"]
[Date "2023.08.15"]
[WhiteClock "0:00:03"]
[BlackClock "0:00:57"]
[Board "96"]

1. Nf3 {[%clk 0:03:00]}  f5 {[%clk 0:02:48]} 2. d3 {[%clk 0:02:58]}  Nf6 {[%clk 0:02:46]} 3. e4 {[%clk 0:02:58]}  fxe4 {[%clk 0:02:47]} 4. dxe4 {[%clk 0:02:59]}  d6 {[%clk 0:02:45]} 5. e5 {[%clk 0:02:57]}  Ng4 {[%clk 0:02:41]} 6. Bc4 {[%clk 0:02:53]}  Nc6 {[%clk 0:02:38]} 7. e6 {[%clk 0:02:45]}  Nge5 {[%clk 0:02:33]} 8. Nxe5 {[%clk 0:02:43]}  Nxe5 {[%clk 0:02:33]} 9. Bb3 {[%clk 0:02:43]}  g6 {[%clk 0:02:26]} 10. h4 {[%clk 0:02:33]}  h5 {[%clk 0:02:25]} 11. Bf4 {[%clk 0:02:14]}  Bg7 {[%clk 0:02:23]} 12. Bxe5 {[%clk 0:02:09]}  Bxe5 {[%clk 0:02:19]} 13. c3 {[%clk 0:02:03]}  O-O {[%clk 0:02:16]} 14. g4 {[%clk 0:01:55]}  c6 {[%clk 0:01:52]} 15. gxh5 {[%clk 0:01:53]}  Qb6 {[%clk 0:01:52]} 16. Qc2 {[%clk 0:01:22]}  Rf6 {[%clk 0:01:43]} 17. hxg6 {[%clk 0:01:16]}  Bxe6 {[%clk 0:01:42]} 18. Bxe6+ {[%clk 0:00:52]}  Rxe6 {[%clk 0:01:41]} 19. O-O {[%clk 0:00:53]}  Rf8 {[%clk 0:01:37]} 20. Kg2 {[%clk 0:00:39]}  Ref6 {[%clk 0:01:12]} 21. Na3 {[%clk 0:00:26]}  Rf4 {[%clk 0:01:07]} 22. Nc4 {[%clk 0:00:17]}  Rxc4 {[%clk 0:01:05]} 23. h5 {[%clk 0:00:15]}  Rg4+ {[%clk 0:01:04]} 24. Kh3 {[%clk 0:00:15]}  Rff4 {[%clk 0:01:04]} 25. f3 {[%clk 0:00:14]}  Rh4+ {[%clk 0:01:04]} 26. Kg2 {[%clk 0:00:03]}  Rb4 {[%clk 0:00:57]} 0-1


[Site "https://www.chess.com"]

[Event "Titled Tuesday Blitz August 15 Early 2023"]
[White "jimmy-schlumpf"]
[Black "Eynullayev, Altay"]
[BlackFideId "13413562"]
[WhiteElo "2411"]
[BlackElo "2553"]
[Result "0-1"]
[Round "7"]
[TimeControl "180+1"]
[Date "2023.08.15"]
[WhiteClock "0:00:00"]
[BlackClock "0:00:04"]
[Board "99"]

1. d4 {[%clk 0:03:00]}  Nf6 {[%clk 0:03:00]} 2. Nf3 {[%clk 0:03:00]}  e6 {[%clk 0:03:00]} 3. c4 {[%clk 0:03:00]}  d5 {[%clk 0:02:59]} 4. g3 {[%clk 0:03:00]}  Bb4+ {[%clk 0:02:58]} 5. Bd2 {[%clk 0:03:00]}  Be7 {[%clk 0:02:59]} 6. Bg2 {[%clk 0:03:00]}  O-O {[%clk 0:02:59]} 7. O-O {[%clk 0:03:00]}  Nbd7 {[%clk 0:03:00]} 8. Qc2 {[%clk 0:03:00]}  c6 {[%clk 0:03:00]} 9. Bf4 {[%clk 0:02:59]}  b6 {[%clk 0:03:01]} 10. Rd1 {[%clk 0:02:59]}  Ba6 {[%clk 0:03:00]} 11. Ne5 {[%clk 0:02:54]}  Rc8 {[%clk 0:02:48]} 12. Qa4 {[%clk 0:02:40]}  Nb8 {[%clk 0:02:46]} 13. cxd5 {[%clk 0:02:34]}  Nxd5 {[%clk 0:02:35]} 14. Nc3 {[%clk 0:02:21]}  Nxf4 {[%clk 0:01:52]} 15. gxf4 {[%clk 0:02:19]}  Bd6 {[%clk 0:01:28]} 16. e3 {[%clk 0:01:44]}  b5 {[%clk 0:01:25]} 17. Qc2 {[%clk 0:01:31]}  f5 {[%clk 0:00:54]} 18. a3 {[%clk 0:01:26]}  Rf6 {[%clk 0:00:31]} 19. Qe2 {[%clk 0:01:08]}  Rh6 {[%clk 0:00:24]} 20. Qf3 {[%clk 0:01:07]}  Rc7 {[%clk 0:00:17]} 21. b4 {[%clk 0:01:04]}  Bb7 {[%clk 0:00:17]} 22. Qg3 {[%clk 0:01:00]}  Nd7 {[%clk 0:00:16]} 23. Rac1 {[%clk 0:00:55]}  Nf6 {[%clk 0:00:15]} 24. h3 {[%clk 0:00:52]}  Nh5 {[%clk 0:00:12]} 25. Qg5 {[%clk 0:00:48]}  Be7 {[%clk 0:00:11]} 26. Qxh6 {[%clk 0:00:38]}  gxh6 {[%clk 0:00:12]} 27. Rc2 {[%clk 0:00:33]}  Nf6 {[%clk 0:00:11]} 28. Rdc1 {[%clk 0:00:32]}  Bd6 {[%clk 0:00:11]} 29. Nd3 {[%clk 0:00:31]}  Nd5 {[%clk 0:00:11]} 30. Ne2 {[%clk 0:00:27]}  Rg7 {[%clk 0:00:10]} 31. Ng3 {[%clk 0:00:27]}  Qe8 {[%clk 0:00:08]} 32. Kh2 {[%clk 0:00:27]}  h5 {[%clk 0:00:09]} 33. Ne5 {[%clk 0:00:22]}  Bxe5 {[%clk 0:00:07]} 34. dxe5 {[%clk 0:00:21]}  h4 {[%clk 0:00:07]} 35. Ne2 {[%clk 0:00:20]}  c5 {[%clk 0:00:07]} 36. Rxc5 {[%clk 0:00:18]}  Rxg2+ {[%clk 0:00:08]} 37. Kxg2 {[%clk 0:00:18]}  Nxf4+ {[%clk 0:00:05]} 38. Kh2 {[%clk 0:00:18]}  Nd3 {[%clk 0:00:04]} 39. Rc7 {[%clk 0:00:15]}  Nxc1 {[%clk 0:00:04]} 40. Nxc1 {[%clk 0:00:13]}  Bf3 {[%clk 0:00:04]} 41. Nd3 {[%clk 0:00:13]}  Qd8 {[%clk 0:00:02]} 42. Rc3 {[%clk 0:00:11]}  Be4 {[%clk 0:00:03]} 43. Nf4 {[%clk 0:00:10]}  Qd2 {[%clk 0:00:03]} 44. Rc8+ {[%clk 0:00:08]}  Kf7 {[%clk 0:00:04]} 45. Rc7+ {[%clk 0:00:08]}  Ke8 {[%clk 0:00:04]} 46. Re7+ {[%clk 0:00:00]}  Kxe7 {[%clk 0:00:04]} 0-1


[Site "https://www.chess.com"]

[Event "Titled Tuesday Blitz August 15 Early 2023"]
[White "Frayna, Janelle Mae"]
[Black "Perdomo, Carlos Andres"]
[WhiteFideId "5212499"]
[BlackFideId "4400852"]
[WhiteElo "2419"]
[BlackElo "2548"]
[Result "0-1"]
[Round "7"]
[TimeControl "180+1"]
[Date "2023.08.15"]
[WhiteClock "0:00:19"]
[BlackClock "0:00:18"]
[Board "101"]

1. e4 {[%clk 0:03:00]}  c5 {[%clk 0:03:00]} 2. Nf3 {[%clk 0:03:00]}  e6 {[%clk 0:03:00]} 3. g3 {[%clk 0:02:59]}  b6 {[%clk 0:02:55]} 4. Bg2 {[%clk 0:02:43]}  Bb7 {[%clk 0:02:56]} 5. Nc3 {[%clk 0:02:39]}  Nf6 {[%clk 0:02:49]} 6. Qe2 {[%clk 0:02:33]}  d5 {[%clk 0:02:44]} 7. e5 {[%clk 0:02:23]}  Nfd7 {[%clk 0:02:44]} 8. O-O {[%clk 0:02:23]}  Nc6 {[%clk 0:02:38]} 9. d3 {[%clk 0:02:24]}  Be7 {[%clk 0:02:23]} 10. h4 {[%clk 0:02:24]}  a6 {[%clk 0:02:19]} 11. Bg5 {[%clk 0:02:22]}  Bxg5 {[%clk 0:02:06]} 12. hxg5 {[%clk 0:02:23]}  Qc7 {[%clk 0:02:06]} 13. Rfe1 {[%clk 0:02:21]}  Rc8 {[%clk 0:01:55]} 14. a3 {[%clk 0:02:13]}  Ba8 {[%clk 0:01:45]} 15. Nxd5 {[%clk 0:02:12]}  exd5 {[%clk 0:01:41]} 16. e6 {[%clk 0:02:12]}  Nf8 {[%clk 0:01:05]} 17. exf7+ {[%clk 0:01:54]}  Kxf7 {[%clk 0:01:06]} 18. Bh3 {[%clk 0:01:49]}  Rd8 {[%clk 0:00:48]} 19. g6+ {[%clk 0:01:43]}  hxg6 {[%clk 0:00:36]} 20. Ng5+ {[%clk 0:01:42]}  Kg8 {[%clk 0:00:27]} 21. c3 {[%clk 0:01:15]}  Rh5 {[%clk 0:00:19]} 22. Be6+ {[%clk 0:01:14]}  Kh8 {[%clk 0:00:14]} 23. Nf7+ {[%clk 0:01:13]}  Kh7 {[%clk 0:00:14]} 24. Nxd8 {[%clk 0:01:10]}  Nxd8 {[%clk 0:00:15]} 25. Bg4 {[%clk 0:01:11]}  Rh6 {[%clk 0:00:15]} 26. Qe7 {[%clk 0:01:06]}  d4 {[%clk 0:00:15]} 27. Qh4 {[%clk 0:00:36]}  Rxh4 {[%clk 0:00:14]} 28. gxh4 {[%clk 0:00:37]}  Qf4 {[%clk 0:00:13]} 29. f3 {[%clk 0:00:33]}  Qg3+ {[%clk 0:00:13]} 30. Kf1 {[%clk 0:00:33]}  Bxf3 {[%clk 0:00:14]} 31. Bxf3 {[%clk 0:00:33]}  Qxf3+ {[%clk 0:00:15]} 32. Kg1 {[%clk 0:00:34]}  Nde6 {[%clk 0:00:15]} 33. Re4 {[%clk 0:00:32]}  Qg3+ {[%clk 0:00:14]} 34. Kf1 {[%clk 0:00:31]}  Nf4 {[%clk 0:00:15]} 35. Rxf4 {[%clk 0:00:27]}  Qxf4+ {[%clk 0:00:15]} 36. Kg2 {[%clk 0:00:28]}  Qd2+ {[%clk 0:00:15]} 37. Kg3 {[%clk 0:00:26]}  Qxd3+ {[%clk 0:00:16]} 38. Kg2 {[%clk 0:00:26]}  dxc3 {[%clk 0:00:17]} 39. bxc3 {[%clk 0:00:19]}  Qxc3 {[%clk 0:00:18]} 0-1


[Site "https://www.chess.com"]

[Event "Titled Tuesday Blitz August 15 Early 2023"]
[White "Fuzesabonyilaci"]
[Black "Postlmayer, Jakob"]
[BlackFideId "1643622"]
[WhiteElo "2396"]
[BlackElo "2545"]
[Result "0-1"]
[Round "7"]
[TimeControl "180+1"]
[Date "2023.08.15"]
[WhiteClock "0:00:00"]
[BlackClock "0:00:14"]
[Board "102"]

1. d4 {[%clk 0:02:58]}  Nf6 {[%clk 0:02:59]} 2. c4 {[%clk 0:02:58]}  e6 {[%clk 0:02:59]} 3. Nf3 {[%clk 0:02:56]}  d5 {[%clk 0:02:59]} 4. g3 {[%clk 0:02:56]}  Bb4+ {[%clk 0:02:56]} 5. Nbd2 {[%clk 0:02:52]}  O-O {[%clk 0:02:56]} 6. Bg2 {[%clk 0:02:47]}  b6 {[%clk 0:02:56]} 7. cxd5 {[%clk 0:02:42]}  exd5 {[%clk 0:02:55]} 8. O-O {[%clk 0:02:41]}  Bb7 {[%clk 0:02:55]} 9. Ne5 {[%clk 0:02:38]}  Bd6 {[%clk 0:02:45]} 10. Ndf3 {[%clk 0:02:34]}  Re8 {[%clk 0:02:41]} 11. Bf4 {[%clk 0:02:27]}  Nh5 {[%clk 0:02:35]} 12. Bd2 {[%clk 0:02:23]}  Nd7 {[%clk 0:02:31]} 13. Nxd7 {[%clk 0:02:07]}  Qxd7 {[%clk 0:02:32]} 14. Rc1 {[%clk 0:02:04]}  Nf6 {[%clk 0:02:29]} 15. Bf4 {[%clk 0:01:58]}  Bxf4 {[%clk 0:02:26]} 16. gxf4 {[%clk 0:01:58]}  Qd6 {[%clk 0:02:20]} 17. e3 {[%clk 0:01:55]}  Ne4 {[%clk 0:02:12]} 18. Ne5 {[%clk 0:01:45]}  f6 {[%clk 0:02:08]} 19. Bxe4 {[%clk 0:01:33]}  dxe4 {[%clk 0:02:06]} 20. Nc4 {[%clk 0:01:24]}  Qe6 {[%clk 0:02:05]} 21. Kh1 {[%clk 0:01:12]}  Rad8 {[%clk 0:01:50]} 22. Rg1 {[%clk 0:01:01]}  c5 {[%clk 0:01:44]} 23. Qh5 {[%clk 0:00:38]}  cxd4 {[%clk 0:01:41]} 24. Rg3 {[%clk 0:00:34]}  Re7 {[%clk 0:01:27]} 25. b3 {[%clk 0:00:27]}  d3 {[%clk 0:01:08]} 26. Nd2 {[%clk 0:00:25]}  Rc8 {[%clk 0:00:56]} 27. Rgg1 {[%clk 0:00:24]}  Rec7 {[%clk 0:00:48]} 28. Rxc7 {[%clk 0:00:18]}  Rxc7 {[%clk 0:00:49]} 29. Qb5 {[%clk 0:00:12]}  h6 {[%clk 0:00:35]} 30. Nc4 {[%clk 0:00:09]}  Kh7 {[%clk 0:00:30]} 31. Qb4 {[%clk 0:00:08]}  Bd5 {[%clk 0:00:25]} 32. Qf8 {[%clk 0:00:08]}  Bxc4 {[%clk 0:00:20]} 33. bxc4 {[%clk 0:00:09]}  Qxc4 {[%clk 0:00:19]} 34. f5 {[%clk 0:00:09]}  Qf7 {[%clk 0:00:19]} 35. Qd6 {[%clk 0:00:07]}  Qd7 {[%clk 0:00:19]} 36. Qg3 {[%clk 0:00:07]}  d2 {[%clk 0:00:18]} 37. Qg6+ {[%clk 0:00:06]}  Kh8 {[%clk 0:00:19]} 38. Rd1 {[%clk 0:00:04]}  Rc1 {[%clk 0:00:19]} 39. Qg4 {[%clk 0:00:04]}  Rxd1+ {[%clk 0:00:19]} 40. Qxd1 {[%clk 0:00:04]}  Qd3 {[%clk 0:00:19]} 41. Kg2 {[%clk 0:00:03]}  Qc3 {[%clk 0:00:19]} 42. Qh5 {[%clk 0:00:03]}  Qc6 {[%clk 0:00:18]} 43. Qf7 {[%clk 0:00:00]}  d1=Q {[%clk 0:00:14]} 0-1


[Site "https://www.chess.com"]